bitfinex-derivatives/quotes_SOLF0:USTF0_20260306
["timestamp","ask_amount","ask_price","bid_price","bid_amount"]
[1772820512265,3.66079124,84.629,84.585,10.639]
[1772820512471,452.17453697,84.637,84.594,2.851834]
[1772820512670,455.83532821,84.637,84.594,2.851834]
[1772820512967,3.66079124,84.636,84.594,2.851834]
[1772820513671,3.66079124,84.636,84.587,10.639]
[1772820514070,7.32231216,84.63,84.587,10.639]
[1772820514468,3.66079124,84.63,84.587,10.639]
[1772820515473,3.66079124,84.628,84.581,2.851834]
[1772820516470,3.66079124,84.628,84.583,10.639]
[1772820517374,3.66079124,84.628,84.583,13.4893956]
[1772820517575,3.66152092,84.62,84.583,13.4893956]
[1772820520774,3.66079124,84.628,84.583,2.8503956]
[1772820521773,452.17453697,84.637,84.595,13.46095232]
[1772820522079,452.17453697,84.637,84.596,2.82295232]
[1772820522373,452.17453697,84.637,84.608,10.636]
[1772820522976,3.66152092,84.65,84.608,10.636]
[1772820523973,3.66079124,84.667,84.61,3.66152092]
[1772820524170,3.66152092,84.66,84.611,2.88091731]
[1772820524373,3.66079124,84.639,84.596,2.91524861]
[1772820524577,3.66079124,84.639,84.598,10.637]
[1772820525478,3.66079124,84.639,84.596,2.91524861]
[1772820525681,3.66152092,84.63,84.596,2.91524861]
[1772820525884,3.66079124,84.629,84.591,10.638]
[1772820526083,3.66079124,84.627,84.583,13.55424861]
[1772820526383,3.66079124,84.627,84.583,2.91524861]
[1772820526774,3.66079124,84.627,84.589,10.639]
[1772820527484,3.66152092,84.62,84.583,2.91524861]
[1772820528286,3.66152092,84.62,84.585,10.639]
[1772820528982,3.66079124,84.619,84.585,10.639]
[1772820530186,3.66152092,84.63,84.592,10.638]
[1772820530388,3.66152092,84.63,84.592,13.56033221]
[1772820530591,3.65559855,84.63,84.592,13.56033221]
[1772820530982,3.66079124,84.629,84.592,10.638]
[1772820531586,3.66079124,84.629,84.58,2.93447873]
[1772820531587,3.66079124,84.629,84.585,10.639]
[1772820531786,3.65559855,84.62,84.585,10.639]
[1772820532387,3.66079124,84.619,84.58,2.93447873]
[1772820532688,7.31638979,84.61,84.572,316.34284477]
[1772820533991,3.65559855,84.62,84.573,2.96550383]
[1772820534489,3.65559855,84.62,84.578,2.98233692]
[1772820534690,3.66079124,84.619,84.578,2.98233692]
[1772820535890,10.635,84.616,84.578,2.98233692]
[1772820536190,14.29111921,84.616,84.578,2.98233692]
[1772820536886,14.29111921,84.616,84.56,3.65559855]
[1772820536887,3.65559855,84.6,84.56,2.99232971]
[1772820537285,3.65611921,84.603,84.565,13.63432971]
[1772820537589,3.65559855,84.61,84.566,2.99232971]
[1772820538291,10.636,84.609,84.57,10.641]
[1772820540890,2.05695641,84.645,84.564,10.642]
[1772820540891,3.65559855,84.6,84.564,10.642]
[1772820541088,3.65611921,84.605,84.552,3.00450171]
[1772820541292,3.65559855,84.61,84.552,3.00450171]
[1772820541488,3.65559855,84.61,84.561,3.00450171]
[1772820541693,3.65611921,84.618,84.576,10.64]
[1772820541994,3.65559855,84.61,84.576,10.64]
[1772820542395,7.35808025,84.61,84.574,3.00450171]
[1772820542697,3.7024817,84.609,84.562,3.00654346]
[1772820543793,3.7024817,84.609,84.572,10.641]
[1772820545590,3.65559855,84.59,84.549,3.00288385]
[1772820546895,3.65559855,84.59,84.557,10.643]
[1772820547599,3.65559855,84.59,84.55,10.644]
[1772820547600,3.7024817,84.589,84.55,10.644]
[1772820548297,3.7024817,84.589,84.556,10.643]
[1772820549394,3.7024817,84.589,84.549,3.00288385]
[1772820549395,3.7024817,84.589,84.549,10.644]
[1772820549595,3.7024817,84.589,84.54,3.65559855]
[1772820549795,3.7024817,84.589,84.536,2.95669866]
[1772820550193,3.65559855,84.59,84.541,2.95669866]
[1772820551397,7.35808025,84.59,84.541,2.95669866]
[1772820551601,3.7024817,84.589,84.541,2.95669866]
[1772820551997,3.7024817,84.579,84.541,2.95669866]
[1772820553904,3.7024817,84.579,84.548,10.644]
[1772820554602,3.7024817,84.593,84.553,2.95462588]
[1772820556906,3.7024817,84.593,84.563,10.642]
[1772820557212,3.7024817,84.593,84.553,2.95462588]
[1772820558401,2.05695641,84.645,84.56,3.65559855]
[1772820558402,3.7024817,84.606,84.56,3.65559855]
[1772820558607,3.7024817,84.606,84.561,3.00828082]
[1772820559105,3.7024817,84.606,84.567,13.64928082]
[1772820559607,3.7024817,84.589,84.551,3.00828082]
[1772820560009,3.65559855,84.6,84.558,3.00828082]
[1772820560803,3.65559855,84.6,84.561,10.642]
[1772820561408,3.65559855,84.61,84.566,10.641]
[1772820561612,3.65559855,84.61,84.567,2.98757936]
[1772820562312,3.7024817,84.614,84.576,10.64]
[1772820563210,3.7024817,84.614,84.567,2.98757936]
[1772820563413,3.7024817,84.609,84.567,2.98757936]
[1772820563809,3.65559855,84.62,84.574,2.99106039]
[1772820564912,7.35808025,84.62,84.577,10.64]
[1772820565218,73.01802685,84.778,84.581,2.96538036]
[1772820565219,3.65559855,84.63,84.581,2.96538036]
[1772820565415,7.35808025,84.63,84.581,2.96538036]
[1772820566315,3.7024817,84.629,84.581,2.96538036]
[1772820566616,3.7024817,84.629,84.588,2.94979725]
[1772820568314,3.7024817,84.638,84.588,2.94979725]
[1772820568714,3.7024817,84.638,84.588,13.58879725]
[1772820570319,3.7024817,84.629,84.579,10.64]
[1772820570822,3.7024817,84.624,84.579,10.64]
[1772820571023,7.35808025,84.62,84.576,2.9467811]
[1772820571321,3.7024817,84.609,84.562,2.9467811]
[1772820572024,10.637,84.603,84.562,2.9467811]
[1772820572223,3.65559855,84.6,84.562,2.9467811]
[1772820572721,3.81391852,84.602,84.562,2.9467811]
[1772820573520,3.81391852,84.599,84.549,10.644]
[1772820573720,3.81391852,84.599,84.551,2.91436578]
[1772820574216,3.81391852,84.599,84.475,36.36264823]
[1772820574217,3.81391852,84.599,84.561,2.91436578]
[1772820575224,3.81391852,84.599,84.57,10.641]
[1772820575630,3.81391852,84.613,84.57,10.641]
[1772820577235,3.81391852,84.613,84.576,10.64]
[1772820577631,3.81391852,84.589,84.544,2.84088236]
[1772820578736,3.81391852,84.579,84.53,2.82105752]
[1772820578928,3.81391852,84.569,84.515,2.82105752]
[1772820579729,3.81391852,84.559,84.516,10.648]
[1772820581329,3.81391852,84.575,84.524,2.80801962]
[1772820582131,3.81391852,84.569,84.52,3.65559855]
[1772820582935,7.46951707,84.58,84.531,2.82134319]
[1772820583238,3.81391852,84.579,84.531,2.82134319]
[1772820583540,3.81391852,84.579,84.534,10.646]
[1772820584241,3.81391852,84.579,84.541,10.645]
[1772820584938,10.638,84.597,84.545,10.644]
[1772820585138,3.81391852,84.6,84.56,3.65559855]
[1772820586041,3.81391852,84.589,84.529,2.84878103]
[1772820586342,3.81391852,84.589,84.546,10.644]
[1772820586537,3.81391852,84.589,84.55,3.65559855]
[1772820587137,3.81391852,84.589,84.541,2.86516832]
[1772820587742,3.81391852,84.589,84.551,10.643]
[1772820588144,3.81391852,84.603,84.551,2.86516832]
[1772820589338,3.81391852,84.603,84.56,3.65559855]
[1772820589842,3.81391852,84.603,84.567,10.641]
[1772820590143,3.81391852,84.603,84.551,2.86516832]
[1772820590338,3.81391852,84.603,84.559,10.642]
[1772820590538,3.81391852,84.599,84.551,2.86516832]
[1772820591140,3.81391852,84.599,84.558,10.642]
[1772820591945,3.81391852,84.589,84.541,2.79030137]
[1772820592140,3.81391852,84.607,84.55,3.65559855]
[1772820592342,3.65559855,84.6,84.551,2.79030137]
[1772820592543,3.65845426,84.6,84.551,2.79030137]
[1772820592944,7.47237278,84.6,84.551,2.79030137]
[1772820593345,3.81391852,84.599,84.551,2.79030137]
[1772820593540,3.81391852,84.589,84.54,3.65845426]
[1772820593847,3.81391852,84.589,84.54,2.77978082]
[1772820594747,3.81391852,84.589,84.547,10.644]
[1772820595948,3.81391852,84.589,84.54,13.42478082]
[1772820596148,3.82065304,84.588,84.54,13.42478082]
[1772820597048,3.82065304,84.586,84.54,13.42478082]
[1772820598049,3.82065304,84.582,84.54,2.77978082]
[1772820600452,14.6115746,84.63,84.533,10.646]
[1772820600453,3.82065304,84.579,84.534,2.78531344]
[1772820600645,3.82065304,84.579,84.507,21.298]
[1772820600646,3.82065304,84.579,84.541,2.78531344]
[1772820601247,3.82065304,84.579,84.547,10.644]
[1772820601544,3.82065304,84.592,84.541,2.78531344]
[1772820602754,3.82065304,84.592,84.553,10.643]
[1772820603752,3.82065304,84.592,84.541,2.78531344]
[1772820604951,3.82065304,84.592,84.552,10.643]
[1772820605144,3.88400875,84.605,84.553,2.7853184]
[1772820605346,3.88400875,84.599,84.553,2.7853184]
[1772820605550,3.88400875,84.599,84.56,10.642]
[1772820606252,3.88400875,84.612,84.567,2.7853184]
[1772820606451,3.65845426,84.61,84.567,2.7853184]
[1772820606653,3.88400875,84.612,84.567,2.7853184]
[1772820607744,3.88400875,84.612,84.57,10.641]
[1772820608350,3.88400875,84.612,84.57,13.45455167]
[1772820609360,3.88400875,84.612,84.571,2.81355167]
[1772820609553,3.65845426,84.62,84.564,2.81355167]
[1772820609853,3.88400875,84.619,84.571,2.81355167]
[1772820610552,3.88400875,84.609,84.563,10.642]
[1772820610751,3.88400875,84.609,84.564,2.80857347]
[1772820611952,3.65845426,84.6,84.553,2.80857347]
[1772820612157,3.88400875,84.589,84.541,2.80857347]
[1772820612351,3.88400875,84.589,84.53,3.65845426]
[1772820612552,3.88400875,84.589,84.531,2.80590381]
[1772820612856,3.88400875,84.589,84.532,2.80590381]
[1772820613159,3.88400875,84.579,84.532,2.80590381]
[1772820616960,3.88400875,84.579,84.532,13.45190381]
[1772820617260,3.88400875,84.577,84.532,2.80590381]
[1772820617454,3.88400875,84.577,84.52,17.12033189]
[1772820617761,3.88400875,84.569,84.521,2.81487763]
[1772820619262,3.88400875,84.567,84.521,2.81487763]
[1772820619861,3.88400875,84.559,84.507,2.81782118]
[1772820620163,3.88400875,84.559,84.511,2.81782118]
[1772820620363,3.88400875,84.559,84.477,21.306]
[1772820620364,3.88400875,84.559,84.521,2.81782118]
[1772820621958,3.88400875,84.559,84.522,10.647]
[1772820622561,3.88400875,84.569,84.523,2.75851687]
[1772820622859,3.88400875,84.569,84.53,3.65845426]
[1772820623062,3.88400875,84.569,84.531,2.75851687]
[1772820623659,3.88400875,84.559,84.51,3.65845426]
[1772820624259,3.88400875,84.539,84.493,2.75851687]
[1772820624562,3.88400875,84.539,84.457,21.311]
[1772820624563,3.88400875,84.539,84.5,6.44615374]
[1772820624864,3.88400875,84.553,84.501,2.78769948]
[1772820625264,3.88400875,84.553,84.457,21.311]
[1772820625265,3.88400875,84.553,84.51,6.44615374]
[1772820625462,3.88400875,84.569,84.52,3.65845426]
[1772820625863,3.88400875,84.569,84.52,6.44615374]
[1772820626062,3.88400875,84.569,84.521,2.78769948]
[1772820626460,3.65845426,84.58,84.531,2.91609269]
[1772820626962,7.54246301,84.58,84.531,2.91609269]
[1772820627166,10.64,84.577,84.531,2.91609269]
[1772820627566,3.88400875,84.569,84.511,2.91609269]
[1772820627756,3.88400875,84.569,84.521,2.91609269]
[1772820628363,3.88400875,84.569,84.53,3.65845426]
[1772820628564,3.88400875,84.589,84.54,3.65845426]
[1772820629364,3.88400875,84.614,84.57,3.65845426]
[1772820629563,3.88400875,84.614,84.561,2.84040244]
[1772820629564,3.88400875,84.609,84.561,2.84040244]
[1772820631064,3.88400875,84.599,84.554,10.643]
[1772820633367,3.88400875,84.599,84.558,13.30102532]
[1772820634166,3.88400875,84.599,84.558,2.65902532]
[1772820635668,3.68470846,84.614,84.561,2.62006813]
[1772820636565,3.68470846,84.614,84.565,10.642]
[1772820637470,3.68470846,84.599,84.547,2.62058273]
[1772820637666,3.68470846,84.599,84.55,3.65845426]
[1772820638773,3.68470846,84.599,84.551,10.643]
[1772820639277,3.68470846,84.589,84.54,3.65845426]
[1772820640271,2.05722393,84.635,84.537,2.62697587]
[1772820640272,3.68470846,84.583,84.537,2.62697587]
[1772820641175,3.68470846,84.58,84.537,2.62697587]
[1772820641572,3.68470846,84.58,84.541,2.61301539]
[1772820641776,472.71098041,84.641,84.557,10.643]
[1772820641777,3.68470846,84.599,84.557,10.643]
[1772820641981,3.68470846,84.599,84.555,2.61301539]
[1772820642176,3.68470846,84.599,84.552,10.643]
[1772820642777,3.68470846,84.599,84.56,3.65845426]
[1772820642972,3.68470846,84.599,84.56,6.26312933]
[1772820644670,3.68470846,84.599,84.56,2.60467507]
[1772820645070,10.636,84.609,84.56,2.60467507]
[1772820645071,3.68470846,84.617,84.563,2.60601139]
[1772820646175,3.68470846,84.609,84.563,2.60601139]
[1772820646376,3.68470846,84.609,84.565,10.642]
[1772820646584,3.68470846,84.609,84.551,2.59932271]
[1772820647084,3.68470846,84.609,84.562,10.642]
[1772820648186,3.68470846,84.606,84.555,10.643]
[1772820648483,3.68470846,84.599,84.555,10.643]
[1772820648679,3.68470846,84.599,84.558,10.642]
[1772820649279,3.68470846,84.589,84.543,2.58598633]
[1772820652283,3.68470846,84.589,84.484,11.83]
[1772820652284,3.68470846,84.569,84.514,2.57462307]
[1772820652475,3.68470846,84.573,84.514,2.57462307]
[1772820652675,3.68470846,84.569,84.52,3.65845426]
[1772820653283,3.68470846,84.569,84.52,6.24173209]
[1772820653580,3.68470846,84.564,84.51,3.65845426]
[1772820653977,3.68470846,84.564,84.511,2.58327783]
[1772820654276,3.68470846,84.564,84.52,13.23027783]
[1772820654472,3.68470846,84.564,84.52,16.89163584]
[1772820654683,3.68470846,84.564,84.521,2.57894683]
[1772820655089,3.68470846,84.559,84.508,2.57894683]
[1772820655384,3.68470846,84.559,84.51,3.66135801]
[1772820655579,3.68470846,84.559,84.52,6.23747004]
[1772820655784,3.66135801,84.57,84.521,2.57611203]
[1772820656379,14.39353472,84.569,84.523,10.647]
[1772820656584,14.39353472,84.569,84.521,2.57611203]
[1772820656783,3.75253472,84.568,84.521,2.57611203]
[1772820657893,10.642,84.564,84.521,2.57611203]
[1772820658391,10.642,84.56,84.521,2.57611203]
[1772820658692,3.75253472,84.559,84.511,2.60237241]
[1772820659491,3.75253472,84.557,84.511,2.60237241]
[1772820659893,3.66135801,84.55,84.511,2.60237241]
[1772820660488,10.644,84.548,84.511,2.60237241]
[1772820660889,3.75253472,84.539,84.49,3.66135801]
[1772820661086,3.75253472,84.529,84.484,2.46176212]
[1772820662292,10.647,84.521,84.484,2.46176212]
[1772820662488,3.87750968,84.519,84.47,2.45530812]
[1772820662690,3.87750968,84.529,84.481,2.45530812]
[1772820662883,3.87750968,84.529,84.483,2.45530812]
[1772820663592,3.87750968,84.539,84.492,2.45530812]
[1772820663895,3.66135801,84.55,84.501,2.45530812]
[1772820664091,3.87750968,84.553,84.501,2.45530812]
[1772820664592,3.87750968,84.553,84.502,2.43614438]
[1772820665597,3.87750968,84.549,84.502,2.43614438]
[1772820666494,3.87750968,84.549,84.503,2.44269684]
[1772820667585,3.87750968,84.549,84.507,10.649]
[1772820667785,3.87750968,84.579,84.521,2.44269684]
[1772820668896,3.87750968,84.579,84.529,10.646]
[1772820669494,3.87750968,84.569,84.521,13.08969684]
[1772820669695,3.87750968,84.569,84.522,2.42994874]
[1772820671496,7.53886769,84.56,84.51,3.66135801]
[1772820671793,3.87750968,84.559,84.51,6.08086146]
[1772820671988,3.87750968,84.557,84.5,3.66135801]
[1772820672191,3.87750968,84.549,84.501,2.41950345]
[1772820672800,3.87750968,84.548,84.501,2.41950345]
[1772820674000,3.87750968,84.548,84.509,12.92845936]
[1772820675100,11.01435326,84.595,84.483,310.00446797]
[1772820675101,3.87750968,84.561,84.521,2.27916372]
[1772820676001,3.66135801,84.56,84.51,10.648]
[1772820676200,3.66135801,84.57,84.52,3.66135801]
[1772820676595,3.66135801,84.56,84.511,2.27916372]
[1772820676900,3.87750968,84.559,84.51,3.66135801]
[1772820677099,3.87750968,84.559,84.5,3.66135801]
[1772820677406,3.87750968,84.557,84.511,2.29138256]
[1772820677904,3.87750968,84.557,84.513,12.93938256]
[1772820678094,3.87750968,84.557,84.514,2.29138256]
[1772820679309,3.87750968,84.557,84.516,2.34765969]
[1772820679806,3.87750968,84.557,84.52,3.66135801]
[1772820681106,3.87750968,84.557,84.518,10.647]
[1772820681510,3.87750968,84.557,84.516,2.34765969]
[1772820682911,10.643,84.556,84.516,2.34765969]
[1772820683106,3.87750968,84.557,84.516,12.99565969]
[1772820683610,3.87750968,84.557,84.503,2.13495264]
[1772820684105,3.87750968,84.557,84.513,10.648]
[1772820684312,3.87750968,84.557,84.514,2.13495264]
[1772820685100,3.87750968,84.557,84.517,10.648]
[1772820687013,3.87750968,84.557,84.514,2.13495264]
[1772820687014,3.87750968,84.555,84.514,2.13495264]
[1772820687715,3.87750968,84.555,84.515,12.77726653]
[1772820687914,3.87750968,84.555,84.516,2.12926653]
[1772820688807,10.642,84.562,84.483,310.00446797]
[1772820688808,10.642,84.562,84.521,2.12861781]
[1772820689513,3.87750968,84.568,84.53,3.66135801]
[1772820689705,3.87750968,84.568,84.521,2.12861781]
[1772820689910,3.87750968,84.568,84.525,2.12861781]
[1772820690715,3.87750968,84.568,84.531,10.646]
[1772820691010,11.01435326,84.603,84.531,10.646]
[1772820691011,3.87750968,84.602,84.531,2.12023898]
[1772820691215,3.87750968,84.599,84.541,2.12023898]
[1772820691413,3.87750968,84.597,84.544,2.12023898]
[1772820691616,3.87750968,84.595,84.544,2.12023898]
[1772820691911,3.87048671,84.593,84.544,2.12023898]
[1772820692115,3.87048671,84.589,84.544,2.12023898]
[1772820693214,9.67295226,84.588,84.546,10.644]
[1772820693410,3.87048671,84.589,84.546,10.644]
[1772820693611,3.66135801,84.6,84.5,21.3]
[1772820693612,3.66135801,84.6,84.551,2.13345618]
[1772820694015,3.87048671,84.598,84.551,2.13345618]
[1772820694215,3.87048671,84.596,84.551,2.13345618]
[1772820694513,3.87048671,84.589,84.544,10.644]
[1772820695417,3.87048671,84.586,84.538,2.13034715]
[1772820696116,3.87048671,84.582,84.538,2.13034715]
[1772820696517,3.87048671,84.582,84.539,10.645]
[1772820699223,3.66135801,84.59,84.549,2.13919677]
[1772820699412,3.87048671,84.595,84.551,2.13919677]
[1772820699818,3.87048671,84.609,84.571,2.13919677]
[1772820700021,3.87048671,84.609,84.574,10.64]
[1772820700221,3.87048671,84.609,84.571,2.13919677]
[1772820703120,10.635,84.616,84.574,2.11135423]
[1772820703525,3.87048671,84.615,84.564,10.642]
[1772820704019,3.87048671,84.615,84.571,10.641]
[1772820704424,3.87048671,84.628,84.572,2.11564576]
[1772820704627,3.87048671,84.628,84.581,2.11564576]
[1772820705827,3.87048671,84.628,84.586,10.639]
[1772820707831,3.87048671,84.628,84.595,10.638]
[1772820708220,3.87048671,84.642,84.596,2.10857275]
[1772820709529,3.87048671,84.642,84.607,10.636]
[1772820710620,293.73076407,84.638,84.599,10.637]
[1772820711628,3.66135801,84.65,84.6,3.66135801]
[1772820711825,3.66135801,84.65,84.601,2.14590139]
[1772820712828,3.66135801,84.65,84.621,10.635]
[1772820714027,3.66135801,84.67,84.629,2.13414289]
[1772820714334,3.87048671,84.669,84.62,3.66135801]
[1772820714523,3.87048671,84.669,84.61,3.65271176]
[1772820715029,3.87048671,84.659,84.615,10.635]
[1772820715226,3.87048671,84.649,84.603,2.13461593]
[1772820715428,3.87048671,84.649,84.6,325.42920843]
[1772820715429,3.87048671,84.639,84.6,321.77649667]
[1772820715728,3.87048671,84.639,84.601,10.637]
[1772820716431,3.65271176,84.65,84.601,2.10737339]
[1772820716630,3.81042749,84.654,84.601,2.10737339]
[1772820717524,3.81042749,84.649,84.601,2.10737339]
[1772820717721,3.81042749,84.649,84.619,10.635]
[1772820717927,3.81042749,84.659,84.619,10.635]
[1772820718122,3.65271176,84.65,84.619,10.635]
[1772820718321,3.81042749,84.649,84.619,10.635]
[1772820719032,3.81042749,84.649,84.612,10.636]
[1772820720029,3.81042749,84.649,84.618,10.635]
[1772820720228,3.81042749,84.649,84.6,325.42920843]
[1772820720229,3.81042749,84.649,84.611,2.12186498]
[1772820720425,3.65271176,84.66,84.611,2.12186498]
[1772820720626,2.05591741,84.695,84.6,321.77649667]
[1772820720627,3.81042749,84.676,84.649,10.631]
[1772820720824,3.81042749,84.676,84.631,2.11974822]
[1772820721131,3.81042749,84.676,84.621,2.11974822]
[1772820721328,3.81042749,84.676,84.64,10.632]
[1772820722022,3.65271176,84.67,84.64,10.632]
[1772820722230,3.95097554,84.659,84.606,2.11449964]
[1772820722632,3.95097554,84.659,84.62,10.635]
[1772820722933,3.95097554,84.659,84.606,2.11449964]
[1772820723134,3.95097554,84.659,84.62,10.635]
[1772820724333,3.95097554,84.659,84.627,10.634]
[1772820726130,3.95097554,84.659,84.62,10.635]
[1772820727730,3.95097554,84.659,84.626,10.634]
[1772820730931,3.95097554,84.677,84.632,2.09693071]
[1772820731735,3.95097554,84.677,84.64,10.632]
[1772820737448,3.95097554,84.677,84.64,16.47604334]
[1772820737947,3.95097554,84.696,84.652,2.19133158]
[1772820739852,3.95097554,84.693,84.64,5.88582181]
[1772820740152,3.95097554,84.689,84.64,5.88582181]
[1772820740450,3.95097554,84.684,84.634,10.633]
[1772820740751,3.95097554,84.684,84.64,3.65271176]
[1772820741254,3.95097554,84.684,84.641,2.3183277]
[1772820741452,455.77903685,84.705,84.651,2.3183277]
[1772820741453,3.95097554,84.699,84.651,2.3183277]
[1772820742153,3.95097554,84.697,84.658,10.63]
[1772820742546,3.95097554,84.697,84.651,12.9493277]
[1772820744156,3.95097554,84.697,84.657,10.63]
[1772820744457,3.95097554,84.697,84.67,3.65271176]
[1772820744654,3.95097554,84.71,84.67,3.65271176]
[1772820745352,3.95097554,84.71,84.671,2.28780322]
[1772820745855,3.95097554,84.71,84.671,12.91580322]
[1772820747057,3.95097554,84.71,84.68,3.65271176]
[1772820747354,293.88058022,84.717,84.68,5.85724575]
[1772820747555,3.95097554,84.726,84.681,2.20453399]
[1772820748046,3.95097554,84.726,84.681,12.83153399]
[1772820748852,3.95097554,84.726,84.687,10.626]
[1772820749053,10.62,84.738,84.688,2.20166249]
[1772820749257,3.65271176,84.74,84.691,2.20166249]
[1772820749258,3.95097554,84.737,84.691,2.20166249]
[1772820749748,3.95097554,84.737,84.693,10.626]
[1772820749953,3.95097554,84.737,84.694,2.20166249]
[1772820750152,3.95097554,84.737,84.7,3.65271176]
[1772820750355,3.95097554,84.737,84.703,10.624]
[1772820750960,3.95097554,84.758,84.703,10.624]
[1772820751161,3.95097554,84.756,84.7,3.65271176]
[1772820751354,3.95097554,84.749,84.694,12.82666249]
[1772820751554,3.95097554,84.749,84.695,2.20912745]
[1772820751754,3.65271176,84.74,84.695,2.20912745]
[1772820751955,3.78664218,84.739,84.695,2.20912745]
[1772820752157,3.78664218,84.739,84.685,10.626]
[1772820752362,3.78664218,84.729,84.685,10.626]
[1772820752558,3.78664218,84.729,84.685,12.88551924]
[1772820752759,3.78664218,84.729,84.685,2.25951924]
[1772820753762,2.05412744,84.765,84.672,2.25951924]
[1772820753763,3.78664218,84.709,84.672,2.25951924]
[1772820756360,3.78664218,84.709,84.673,10.628]
[1772820756563,3.78664218,84.709,84.673,13.03163485]
[1772820756966,3.78664218,84.709,84.673,2.40363485]
[1772820758265,3.78664218,84.721,84.673,2.40363485]
[1772820758658,3.78664218,84.719,84.673,13.03163485]
[1772820759260,3.78664218,84.719,84.679,10.627]
[1772820759460,3.78664218,84.719,84.673,2.40363485]
[1772820759958,3.78664218,84.719,84.675,10.628]
[1772820760161,3.78664218,84.719,84.68,6.12283196]
[1772820760464,3.78664218,84.719,84.681,2.4701202]
[1772820760659,3.78664218,84.719,84.688,10.626]
[1772820761561,3.78664218,84.754,84.63,165.416]
[1772820761772,21.63491962,84.788,84.63,165.416]
[1772820761773,3.78664218,84.749,84.691,2.51532018]
[1772820762264,3.78664218,84.739,84.694,10.625]
[1772820762663,3.78664218,84.739,84.63,165.416]
[1772820762664,3.78664218,84.729,84.681,2.54698151]
[1772820763165,10.96310589,84.773,84.595,165.485]
[1772820763166,3.65271176,84.74,84.691,2.54698151]
[1772820763569,3.78664218,84.744,84.704,10.624]
[1772820764670,3.78664218,84.744,84.703,2.56729523]
[1772820765662,7.43935394,84.74,84.703,2.56729523]
[1772820765865,7.43935394,84.74,84.697,10.625]
[1772820765866,3.78664218,84.739,84.697,10.625]
[1772820766274,3.78664218,84.739,84.69,13.19329523]
[1772820766573,3.78664218,84.739,84.69,6.22000699]
[1772820766765,3.78664218,84.739,84.69,3.65271176]
[1772820766969,3.78664218,84.739,84.691,2.54793422]
[1772820767873,3.78664218,84.739,84.698,10.625]
[1772820768073,3.78664218,84.739,84.698,13.17293422]
[1772820768369,3.78664218,84.739,84.701,2.54793422]
[1772820769369,3.78664218,84.739,84.692,10.626]
[1772820769967,3.65271176,84.73,84.692,10.626]
[1772820770164,3.78664218,84.729,84.687,2.52370871]
[1772820770569,7.43935394,84.72,84.675,2.532888]
[1772820771470,3.78664218,84.72,84.688,10.626]
[1772820772070,3.78664218,84.709,84.662,2.532888]
[1772820772268,3.78664218,84.699,84.648,2.532888]
[1772820772473,3.65271176,84.69,84.648,2.532888]
[1772820772669,10.96310589,84.743,84.634,2.53438215]
[1772820772670,3.78664218,84.679,84.634,2.53438215]
[1772820773369,3.65271176,84.67,84.634,2.53438215]
[1772820776376,3.65271176,84.67,84.638,10.633]
[1772820776574,3.78664218,84.679,84.638,10.633]
[1772820777383,3.78664218,84.679,84.645,10.633]
[1772820777576,3.78664218,84.679,84.634,2.53438215]
[1772820778178,3.78664218,84.679,84.635,10.634]
[1772820780773,3.9796342,84.669,84.621,2.82689057]
[1772820780976,3.65176188,84.68,84.621,2.82689057]
[1772820781183,3.9796342,84.679,84.621,2.82689057]
[1772820781882,3.9796342,84.679,84.639,10.633]
[1772820782079,3.9796342,84.679,84.621,2.82689057]
[1772820782274,3.87071358,84.659,84.623,10.635]
[1772820782579,3.87071358,84.659,84.611,2.82628005]
[1772820783582,3.87071358,84.685,84.64,6.43016966]
[1772820783878,3.87071358,84.685,84.641,2.77840778]
[1772820784876,3.87071358,84.685,84.647,10.632]
[1772820785078,3.87071358,84.685,84.641,2.77840778]
[1772820785477,3.87071358,84.685,84.646,10.632]
[1772820785688,3.65176188,84.68,84.646,10.632]
[1772820785892,3.87071358,84.679,84.641,2.77840778]
[1772820786488,3.87071358,84.679,84.642,10.633]
[1772820786690,3.87071358,84.679,84.641,2.77840778]
[1772820788897,3.87071358,84.679,84.647,10.632]
[1772820789196,3.87071358,84.706,84.641,2.77840778]
[1772820789402,3.87071358,84.699,84.651,2.75650932]
[1772820789795,3.65176188,84.71,84.67,10.629]
[1772820789992,3.87071358,84.709,84.67,10.629]
[1772820790596,3.87071358,84.709,84.663,2.75650932]
[1772820790795,7.52247546,84.7,84.663,2.75650932]
[1772820790996,3.87071358,84.699,84.662,10.63]
[1772820792802,3.87071358,84.699,84.669,10.63]
[1772820793800,3.87071358,84.699,84.651,2.54629271]
[1772820793801,3.87071358,84.699,84.656,10.631]
[1772820794204,3.87071358,84.699,84.651,2.54629271]
[1772820794703,10.96310589,84.743,84.653,10.632]